fUSD/lending_fUSD_20250402
["ID","MTS","AMOUNT","RATE_DAILY","PERIOD"]
[357035843,1743605438371,-500.0,0.00054794,120]
[357035845,1743605438380,-500.0,0.00054794,120]
[357035846,1743605438392,-836.78,0.00054794,120]
[357035847,1743605438401,-500.0,0.00054794,120]
[357035848,1743605438414,-508.79146467,0.00054794,120]
[357035849,1743605438424,-500.0,0.00054794,120]
[357035852,1743605438434,-508.22070607,0.00054794,120]
[357035853,1743605438444,-500.0,0.00054794,120]
[357035854,1743605438454,-500.0,0.00054794,120]
[357035855,1743605438464,-500.0,0.00054794,120]
[357035856,1743605438473,-500.0,0.00054794,120]
[357035857,1743605438483,-500.0,0.00054794,120]
[357035858,1743605438492,-504.02761265,0.00054794,120]
[357035859,1743605438502,-500.0,0.00054794,120]
[357035860,1743605438512,-500.0,0.00054794,120]
[357035861,1743605438521,-329.38039917,0.00054794,7]
[357035862,1743605438531,-549.61041174,0.00054794,120]
[357035863,1743605438540,-500.0,0.00054794,120]
[357035864,1743605438549,-500.0,0.00054794,120]
[357035865,1743605438558,-500.0,0.00054794,120]
[357035866,1743605438567,-512.55523384,0.00054794,120]
[357035867,1743605438577,-500.0,0.00054794,120]
[357035868,1743605438586,-500.0,0.00054794,120]
[357035869,1743605438595,-524.35228492,0.00054794,120]
[357035870,1743605438604,-500.0,0.00054794,120]
[357035871,1743605438614,-500.0,0.00054794,120]
[357035872,1743605438623,-500.0,0.00054794,120]
[357035873,1743605438632,-503.12364838,0.00054794,120]
[357035874,1743605438644,-506.45719326,0.00054794,120]
[357035875,1743605438655,-500.0,0.00054794,120]
[357035876,1743605438664,-268.94654803,0.00054794,120]
[357035877,1743605438674,-500.0,0.00054794,120]
[357035878,1743605438683,-500.0,0.00054794,120]
[357035879,1743605438693,-605.97340202,0.00054794,120]
[357035880,1743605438702,-500.0,0.00054794,120]
[357035881,1743605438711,-500.0,0.00054794,120]
[357035882,1743605438721,-500.0,0.00054794,120]
[357035883,1743605438731,-500.0,0.00054794,120]
[357035884,1743605438740,-1021.67835516,0.00054794,120]
[357035885,1743605438749,-500.0,0.00054794,120]
[357035886,1743605438758,-500.0,0.00054794,120]
[357035887,1743605438767,-514.65354354,0.00054794,120]
[357035888,1743605438776,-500.0,0.00054794,120]
[357035889,1743605438785,-533.9145055,0.00054794,120]
[357035890,1743605438795,-500.0,0.00054794,120]
[357035891,1743605438804,-500.0,0.00054794,120]
[357035892,1743605438813,-518.65486441,0.00054794,120]
[357035893,1743605438822,-500.0,0.00054794,120]
[357035894,1743605438831,-500.0,0.00054794,120]
[357035895,1743605438840,-500.0,0.00054794,120]
[357035896,1743605438849,-500.0,0.00054794,120]
[357035897,1743605438858,-542.60092188,0.00054794,120]
[357035898,1743605438867,-221.57508462,0.00054794,120]
[357035899,1743605438876,-512.10803653,0.00054794,120]
[357035900,1743605438885,-521.93335543,0.00054794,120]
[357035901,1743605438897,-500.0,0.00054794,120]
[357035902,1743605438907,-500.0,0.00054794,120]
[357035903,1743605438916,-500.0,0.00054794,120]
[357035904,1743605438925,-500.0,0.00054794,120]
[357035905,1743605438934,-500.0,0.00054794,120]
[357035906,1743605438943,-500.0,0.00054794,120]
[357035907,1743605438952,-500.0,0.00054794,120]
[357035908,1743605438961,-514.02545038,0.00054794,120]
[357035909,1743605438970,-513.4850067,0.00054794,120]
[357035910,1743605438979,-500.0,0.00054794,120]
[357035911,1743605438989,-500.0,0.00054794,120]
[357035912,1743605438998,-514.83551466,0.00054794,120]
[357035913,1743605439007,-506.81674644,0.00054794,120]
[357035914,1743605439016,-500.0,0.00054794,120]
[357035915,1743605439025,-521.26957411,0.00054794,120]
[357035916,1743605439034,-508.6415992,0.00054794,120]
[357035917,1743605439043,-500.0,0.00054794,120]
[357035918,1743605439053,-508.72837721,0.00054794,120]
[357035919,1743605439062,-500.0,0.00054794,120]
[357035920,1743605439072,-500.0,0.00054794,120]
[357035921,1743605439080,-500.0,0.00054794,120]
[357035922,1743605439090,-2000.0,0.00054794,30]
[357035923,1743605439099,-500.0,0.00054794,120]
[357035924,1743605439108,-534.46536308,0.00054794,120]
[357035925,1743605439117,-517.01927066,0.00054794,120]
[357035926,1743605439127,-522.39323078,0.00054794,120]
[357035927,1743605439137,-500.0,0.00054794,120]
[357035928,1743605439146,-518.7311442,0.00054794,120]
[357035929,1743605439156,-511.89373592,0.00054794,120]
[357035930,1743605439167,-500.0,0.00054794,120]
[357035931,1743605439178,-532.57103613,0.00054794,120]
[357035932,1743605439188,-500.0,0.00054794,120]
[357035933,1743605439197,-500.0,0.00054794,120]
[357035934,1743605439207,-500.0,0.00054794,120]
[357035935,1743605439216,-500.0,0.00054794,120]
[357035936,1743605439225,-500.0,0.00054794,120]
[357035937,1743605439235,-520.06810347,0.00054794,120]
[357035938,1743605439244,-500.0,0.00054794,120]
[357035939,1743605439255,-500.0,0.00054794,120]
[357035940,1743605439265,-500.0,0.00054794,120]
[357035941,1743605439274,-500.0,0.00054794,120]
[357035942,1743605439283,-500.0,0.00054794,120]
[357035943,1743605439293,-630.43452446,0.00054794,120]
[357035944,1743605439302,-500.0,0.00054794,120]
[357035945,1743605439311,-512.21380673,0.00054794,120]
[357035946,1743605439320,-500.0,0.00054794,120]
[357035947,1743605439329,-553.02654805,0.00054794,120]
[357035948,1743605439339,-500.0,0.00054794,120]
[357035949,1743605439348,-500.0,0.00054794,120]
[357035950,1743605439358,-500.0,0.00054794,120]
[357035951,1743605439367,-500.0,0.00054794,120]
[357035952,1743605439376,-500.0,0.00054794,120]
[357035953,1743605439385,-500.0,0.00054794,120]
[357035954,1743605439395,-500.0,0.00054794,120]
[357035955,1743605439405,-500.0,0.00054794,120]
[357035956,1743605439414,-500.0,0.00054794,120]
[357035957,1743605439423,-500.0,0.00054794,120]
[357035958,1743605439432,-500.0,0.00054794,120]
[357035959,1743605439441,-500.0,0.00054794,120]
[357035960,1743605439451,-500.0,0.00054794,120]
[357035961,1743605439460,-500.0,0.00054794,120]
[357035962,1743605439469,-500.0,0.00054794,120]
[357035963,1743605439478,-506.65010256,0.00054794,120]
[357035964,1743605439487,-505.17525884,0.00054794,120]
[357035965,1743605439496,-500.0,0.00054794,120]
[357035966,1743605439505,-500.0,0.00054794,120]
[357035967,1743605439514,-513.13420197,0.00054794,120]
[357035968,1743605439523,-500.0,0.00054794,120]
[357035969,1743605439532,-500.0,0.00054794,120]
[357035970,1743605439542,-500.0,0.00054794,120]
[357035971,1743605439552,-500.0,0.00054794,120]
[357035972,1743605439561,-500.0,0.00054794,120]
[357035973,1743605439571,-500.0,0.00054794,120]
[357035974,1743605439581,-500.0,0.00054794,120]
[357035975,1743605439591,-500.0,0.00054794,120]
[357035976,1743605439600,-500.0,0.00054794,120]
[357035977,1743605439610,-500.0,0.00054794,120]
[357035978,1743605439620,-500.0,0.00054794,120]
[357035979,1743605439630,-500.0,0.00054794,10]
[357035980,1743605439641,-500.0,0.00054794,120]
[357035981,1743605439651,-500.0,0.00054794,120]
[357035982,1743605439661,-500.0,0.00054794,120]
[357035983,1743605439671,-279.37179312,0.00054794,120]
[357035984,1743605439680,-500.0,0.00054794,120]
[357035985,1743605439690,-500.0,0.00054794,120]
[357035986,1743605439700,-500.0,0.00054794,120]
[357035987,1743605439709,-500.0,0.00054794,120]
[357035988,1743605439718,-500.0,0.00054794,120]
[357035989,1743605439727,-500.0,0.00054794,120]
[357035990,1743605439736,-500.0,0.00054794,2]
[357035991,1743605439746,-500.0,0.00054794,120]
[357035992,1743605439755,-523.91756508,0.00054794,120]
[357035993,1743605439765,-500.0,0.00054794,2]
[357035994,1743605439774,-500.0,0.00054794,2]
[357035995,1743605439783,-500.0,0.00054794,120]
[357035996,1743605439792,-500.0,0.00054794,2]
[357035997,1743605439801,-373.75698416,0.00054794,2]
[357035998,1743605439811,-500.0,0.00054794,120]
[357035999,1743605439820,-525.17872438,0.00054794,120]
[357036000,1743605439829,-500.0,0.00054794,120]
[357036001,1743605439838,-500.0,0.00054794,120]
[357036002,1743605439847,-500.0,0.00054794,120]
[357036003,1743605439857,-561.81121677,0.00054794,120]
[357036004,1743605439867,-500.0,0.00054794,120]
[357036005,1743605439876,-568.34634829,0.00054794,120]
[357036007,1743605439885,-500.0,0.00054794,120]
[357036009,1743605439895,-500.0,0.00054794,120]
[357036010,1743605439904,-500.0,0.00054794,120]
[357036012,1743605439914,-500.0,0.00054794,120]
[357036014,1743605439923,-500.0,0.00054794,120]
[357036016,1743605439932,-500.0,0.00054794,120]
[357036017,1743605439941,-500.0,0.00054794,120]
[357036018,1743605439950,-500.0,0.00054794,120]
[357036019,1743605439959,-486.31452402,0.00054794,120]
[357036020,1743605439968,-607.88054903,0.00054794,120]
[357036021,1743605439977,-500.0,0.00054794,120]
[357036022,1743605439987,-500.0,0.00054794,120]
[357036023,1743605439995,-450.05509817,0.00054794,120]
[357036024,1743605440005,-500.0,0.00054794,120]
[357036025,1743605440014,-579.09984208,0.00054794,120]
[357036026,1743605440023,-500.0,0.00054794,120]
[357036027,1743605440032,-500.0,0.00054794,120]
[357036028,1743605440041,-500.0,0.00054794,120]
[357036029,1743605440050,-500.0,0.00054794,120]
[357036030,1743605440059,-500.0,0.00054794,120]
[357036031,1743605440069,-500.0,0.00054794,120]
[357036032,1743605440078,-500.0,0.00054794,120]
[357036033,1743605440087,-569.4538989,0.00054794,120]
[357036035,1743605440097,-550.63886622,0.00054794,120]
[357036036,1743605440106,-185.78755638,0.00054794,120]
[357036037,1743605440115,-500.0,0.00054794,120]
[357036038,1743605440124,-500.0,0.00054794,120]
[357036039,1743605440133,-500.0,0.00054794,120]
[357036041,1743605440143,-500.0,0.00054794,120]
[357036043,1743605440153,-523.12558745,0.00054794,120]
[357036045,1743605440162,-500.0,0.00054794,120]
[357036056,1743605440255,-500.0,0.00054794,120]
[357036057,1743605440277,-500.0,0.00054794,120]
[357036058,1743605440287,-500.0,0.00054794,120]
[357036059,1743605440297,-500.0,0.00054794,120]
[357036060,1743605440307,-500.0,0.00054794,120]
[357036061,1743605440317,-500.0,0.00054794,120]
[357036062,1743605440328,-506.50560498,0.00054794,120]
[357036063,1743605440338,-500.0,0.00054794,120]
[357036064,1743605440349,-500.0,0.00054794,120]
[357036065,1743605440359,-500.0,0.00054794,120]
[357036066,1743605440369,-500.0,0.00054794,120]
[357036067,1743605440379,-280.39459491,0.00054794,120]
[357036068,1743605440390,-1892.59,0.00054794,7]
[357036069,1743605440399,-156.68375868,0.00054794,120]
[357036070,1743605440409,-167.61,0.00054794,120]
[357036071,1743605440419,-500.0,0.00054794,120]
[357036072,1743605440427,-500.0,0.00054794,120]
[357036073,1743605440436,-500.0,0.00054794,120]
[357036074,1743605440447,-200.78609886,0.00054794,120]
[357036075,1743605440456,-537.4716261,0.00054794,120]
[357036076,1743605440467,-540.67096937,0.00054794,120]
[357036077,1743605440476,-559.52469626,0.00054794,120]
[357036078,1743605440486,-523.25885805,0.00054794,120]
[357036079,1743605440496,-500.0,0.00054794,120]
[357036080,1743605440505,-500.0,0.00054794,120]
[357036081,1743605440515,-500.0,0.00054794,120]
[357036082,1743605440524,-500.0,0.00054794,120]
[357036083,1743605440534,-500.0,0.00054794,120]
[357036084,1743605440543,-500.0,0.00054794,120]
[357036085,1743605440552,-500.0,0.00054794,120]
[357036086,1743605440561,-500.0,0.00054794,120]
[357036087,1743605440572,-500.0,0.00054794,120]
[357036088,1743605440583,-500.0,0.00054794,120]
[357036089,1743605440592,-500.0,0.00054794,120]
[357036090,1743605440601,-492.452,0.00054794,120]
[357036091,1743605440610,-500.0,0.00054794,120]
[357036092,1743605440620,-500.0,0.00054794,120]
[357036093,1743605440629,-500.0,0.00054794,120]
[357036094,1743605440638,-500.0,0.00054794,120]
[357036095,1743605440647,-500.0,0.00054794,120]
[357036096,1743605440657,-538.98553765,0.00054794,120]
[357036097,1743605440666,-500.0,0.00054794,120]
[357036098,1743605440676,-500.0,0.00054794,120]
[357036099,1743605440685,-1676.48,0.00054794,2]
[357036100,1743605440694,-500.0,0.00054794,120]
[357036101,1743605440703,-500.0,0.00054794,120]
[357036102,1743605440713,-500.0,0.00054794,120]
[357036103,1743605440723,-500.0,0.00054794,120]
[357036104,1743605440733,-500.0,0.00054794,120]
[357036105,1743605440743,-521.52135037,0.00054794,120]
[357036106,1743605440753,-500.0,0.00054794,120]
[357036107,1743605440763,-390.79214514,0.00054794,120]
[357036109,1743605440773,-500.0,0.00054794,120]
[357036111,1743605440782,-500.0,0.00054794,120]
[357036113,1743605440792,-539.63248054,0.00054794,120]
[357036115,1743605440801,-512.91075126,0.00054794,120]
[357036116,1743605440810,-999.08,0.00054794,120]
[357036118,1743605440820,-500.0,0.00054794,120]
[357036120,1743605440830,-500.0,0.00054794,120]
[357036122,1743605440839,-500.0,0.00054794,120]
[357036124,1743605440849,-500.0,0.00054794,120]
[357036125,1743605440858,-500.0,0.00054794,30]
[357036126,1743605440867,-500.0,0.00054794,120]
[357036127,1743605440876,-500.0,0.00054794,2]
[357036128,1743605440885,-500.0,0.00054794,120]
[357036129,1743605440895,-615.13860981,0.00054794,120]
[357036130,1743605440905,-588.39676595,0.00054794,120]
[357036131,1743605440914,-500.0,0.00054794,120]
[357036132,1743605440923,-500.0,0.00054794,120]
[357036133,1743605440932,-500.0,0.00054794,120]
[357036134,1743605440942,-500.0,0.00054794,120]
[357036135,1743605440951,-523.95002946,0.00054794,120]
[357036136,1743605440960,-1065.07135769,0.00054794,120]
[357036137,1743605440969,-500.0,0.00054794,120]
[357036138,1743605440978,-500.0,0.00054794,120]
[357036139,1743605440987,-500.0,0.00054794,120]
[357036140,1743605440997,-589.37,0.00054794,120]
[357036141,1743605441006,-548.83697328,0.00054794,120]
[357036142,1743605441015,-542.94842918,0.00054794,120]
[357036143,1743605441024,-500.0,0.00054794,120]
[357036144,1743605441033,-500.0,0.00054794,120]
[357036145,1743605441042,-500.0,0.00054794,120]
[357036146,1743605441051,-500.0,0.00054794,120]
[357036147,1743605441060,-500.0,0.00054794,120]
[357036148,1743605441069,-500.0,0.00054794,100]
[357036149,1743605441079,-500.0,0.00054794,120]
[357036150,1743605441088,-500.0,0.00054794,120]
[357036151,1743605441097,-500.0,0.00054794,120]
[357036152,1743605441107,-500.0,0.00054794,2]
[357036153,1743605441116,-500.0,0.00054794,120]
[357036154,1743605441126,-500.0,0.00054794,120]
[357036155,1743605441135,-500.0,0.00054794,120]
[357036156,1743605441146,-500.0,0.00054794,120]
[357036157,1743605441155,-3627.33,0.00054794,120]
[357036158,1743605441165,-500.0,0.00054794,120]
[357036159,1743605441178,-500.0,0.00054794,120]
[357036160,1743605441188,-500.0,0.00054794,120]
[357036161,1743605441197,-500.0,0.00054794,120]
[357036162,1743605441207,-343.22238701,0.00054794,120]
[357036163,1743605441218,-500.0,0.00054794,120]
[357036164,1743605441227,-562.17218483,0.00054794,120]
[357036165,1743605441236,-500.0,0.00054794,120]
[357036166,1743605441247,-1666.66,0.00054794,120]
[357036167,1743605441256,-500.0,0.00054794,120]
[357036168,1743605441265,-330.08335131,0.00054794,120]
[357036169,1743605441274,-500.0,0.00054794,120]
[357036170,1743605441283,-499.17532534,0.00054794,120]
[357036171,1743605441293,-500.0,0.00054794,120]
[357036172,1743605441303,-500.0,0.00054794,120]
[357036173,1743605441312,-518.37819294,0.00054794,120]
[357036174,1743605441322,-515.46601173,0.00054794,120]
[357036175,1743605441331,-500.0,0.00054794,120]
[357036176,1743605441341,-500.77111947,0.00054794,2]
[357036177,1743605441350,-500.0,0.00054794,120]
[357036178,1743605441360,-500.92738405,0.00054794,2]
[357036179,1743605441370,-500.0,0.00054794,120]
[357036180,1743605441379,-521.86233351,0.00054794,120]
[357036181,1743605441390,-500.0,0.00054794,120]
[357036182,1743605441400,-608.01726238,0.00054794,120]
[357036183,1743605441410,-560.90360105,0.00054794,120]
[357036184,1743605441419,-500.0,0.00054794,120]
[357036185,1743605441428,-500.0,0.00054794,120]
[357036186,1743605441438,-500.0,0.00054794,2]
[357036187,1743605441447,-500.0,0.00054794,120]
[357036188,1743605441457,-500.0,0.00054795,120]
[357036189,1743605441467,-412.85399149,0.00054795,120]
[357036190,1743605441477,-500.0,0.00054795,120]
[357036191,1743605441487,-158.69419946,0.000549,15]
[357036192,1743605441496,-1200.0,0.000549,20]
[357036193,1743605441506,-296.66070677,0.000549,15]
[357036194,1743605441515,-151.51909124,0.000549,120]
[357036195,1743605441525,-201.0,0.00054986,120]
[357036196,1743605441535,-461.92035597,0.00055,2]
[357036197,1743605441545,-1089.2409765,0.00055,3]
[357036198,1743605441554,-18877.30777339,0.00055,120]
[357036199,1743605441663,-258.258,0.00055,120]
[357036200,1743605441884,-500.0,0.00054794,120]
[357036201,1743605441895,-331.16,0.00055,25]
[357036202,1743605441907,-825.84,0.00055,25]
[357036203,1743605441916,-595.03779712,0.00055,120]
[357036204,1743605441931,-7057.33097882,0.00055,120]
[357036205,1743605441951,-117126.28092962,0.00055,120]
[357036206,1743605441962,-947.66428876,0.00055,120]
[357036213,1743605446048,-279.70138944,0.00054794,2]
[357036214,1743605446057,-16617.25783137,0.00055,120]
[357036215,1743605446145,-1884.93748309,0.00055,120]
[357036216,1743605446164,-28777.04292545,0.00055,120]
[357036217,1743605446306,-1748.91942604,0.00055,120]
[357036510,1743605588887,3409.876428,7.945e-05,2]
[357036511,1743605802426,-200.0,0.00031,2]
[357036512,1743605814967,-151.0,0.000251,2]
[357036513,1743605818596,1533.08,0.00014861,2]
[357036519,1743606100968,6029.0,0.00032,120]
[357036522,1743606430174,-99.0,0.000251,2]
[357036523,1743606430199,-168.66057526,0.000251,2]
[357036524,1743606432150,-173.6214499,0.000251,2]
[357036525,1743606437142,-157.71797484,0.000251,2]
[357036526,1743606437165,-500.0,0.000251,2]
[357036527,1743606437187,-160.33,0.00026849,2]
[357036528,1743606437216,-250.0,0.00027,2]
[357036529,1743606437241,-300.0,0.00029,2]
[357036530,1743606437263,-50.0,0.00031,2]
[357036531,1743606437286,-350.0,0.00031,2]
[357036532,1743606437308,-400.0,0.00033,2]
[357036533,1743606437330,-450.0,0.00035,2]
[357036534,1743606437352,-263.039217,0.00037,2]
[357036535,1743606453115,-152.20436004,0.00037,2]
[357036537,1743606546136,-84.75642296,0.00037,2]
[357036538,1743606546159,-550.0,0.00039,2]
[357036539,1743606546181,-600.0,0.00041,2]
[357036540,1743606546201,-650.0,0.00043,2]
[357036541,1743606546222,-151.334503,0.00043343,3]
[357036542,1743606546253,-151.0,0.00045,120]
[357036543,1743606546280,-368.07377453,0.00045,2]
[357036544,1743606547148,-300.31095048,0.00045,2]
[357036551,1743606632370,-31.61527499,0.00045,2]
[357036552,1743606632389,-150.0,0.0004645,2]
[357036553,1743606632400,-750.0,0.00047,2]
[357036554,1743606632410,-150.0,0.00048118,2]
[357036555,1743606632419,-2000.0,0.0004836,120]
[357036556,1743606632430,-3198.40957194,0.000488,120]
[357036557,1743606632439,-418.26028539,0.00049,2]
[357036558,1743606632496,-29.74006388,0.00049,2]
[357036559,1743606632647,-351.99965073,0.00049,2]
[357036560,1743606632658,-162.41361348,0.00049108,2]
[357036561,1743606632670,-1.59638652,0.00049108,2]
[357036562,1743606632680,-150.0,0.00049443,2]
[357036563,1743606632690,-150.0,0.000495,2]
[357036564,1743606632699,-165.44488603,0.00049969,15]
[357036566,1743606632709,-4696.50490626,0.0004999,2]
[357036753,1743606638077,-2986.05264043,0.0004999,2]
[357036755,1743606638088,-3508.25748716,0.0004999,2]
[357036757,1743606638098,-208.23625418,0.0005,120]
[357036759,1743606638110,-250.0,0.00050015,120]
[357036760,1743606638119,-223.92,0.00050045,2]
[357036761,1743606638129,-5105.90330646,0.00050432,2]
[357036762,1743606638145,-1262.71049519,0.00050432,2]
[357036763,1743606638202,-925.64999983,0.00050432,2]
[357036973,1743606640475,-859.28,0.00050432,2]
[357036974,1743606640487,-636.2189984,0.00050432,2]
[357036987,1743606640605,-859.9,0.00050432,2]
[357037009,1743606640814,-349.13845828,0.00050432,2]
[357037069,1743606645650,-311.49744868,0.00050432,2]
[357037123,1743606647512,-3475.81272357,0.00050432,2]
[357037124,1743606647524,-386.70499981,0.00050432,2]
[357037125,1743606647536,-9727.18356978,0.00050432,2]
[357037126,1743606647549,-150.0,0.000509,2]
[357037127,1743606647558,-850.0,0.00051,2]
[357037128,1743606647568,-151.0,0.00051075,120]
[357037129,1743606647577,-3948.0,0.00051075,120]
[357037130,1743606647588,-165.44488601,0.00051124,15]
[357037131,1743606647597,-1000.0,0.00051362,120]
[357037132,1743606647606,-472.7,0.00051649,2]
[357037133,1743606647619,-200.0,0.00051689,2]
[357037134,1743606647628,-200.0,0.00051689,2]
[357037135,1743606647638,-200.0,0.00051689,2]
[357037136,1743606647648,-200.0,0.00051689,2]
[357037137,1743606647658,-200.0,0.00051689,2]
[357037138,1743606647668,-200.0,0.00051689,2]
[357037139,1743606647678,-200.0,0.00051689,2]
[357037140,1743606647687,-200.0,0.00051689,2]
[357037141,1743606647698,-200.0,0.00051689,2]
[357037142,1743606647712,-200.0,0.00051689,2]
[357037143,1743606647722,-200.0,0.00051689,2]
[357037144,1743606647731,-200.0,0.00051689,2]
[357037145,1743606647742,-200.0,0.00051689,2]
[357037146,1743606647753,-200.0,0.00051689,2]
[357037147,1743606647762,-200.0,0.00051689,2]
[357037148,1743606647772,-200.0,0.00051689,2]
[357037149,1743606647782,-200.0,0.00051689,2]
[357037150,1743606647792,-200.0,0.00051689,2]
[357037151,1743606647801,-200.0,0.00051689,2]
[357037152,1743606647810,-200.0,0.00051689,2]
[357037153,1743606647819,-200.0,0.00051689,2]
[357037154,1743606647830,-200.0,0.00051689,2]
[357037155,1743606647840,-200.0,0.00051689,2]
[357037156,1743606647850,-200.0,0.00051689,2]
[357037157,1743606647859,-200.0,0.00051689,2]
[357037158,1743606647871,-313.0,0.00051689,2]
[357037159,1743606647881,-158.36,0.00051756,120]
[357037160,1743606647891,-313.68,0.0005179,2]
[357037161,1743606647901,-279.92846071,0.0005182,30]
[357037162,1743606647910,-1000.0,0.00051999,10]
[357037163,1743606647920,-10003.0,0.00052,120]
[357037164,1743606647930,-1420.0,0.00052165,120]
[357037165,1743606647939,-599.401,0.00052165,120]
[357037166,1743606647949,-789.0,0.00052165,2]
[357037167,1743606647958,-1275.0,0.00052165,120]
[357037168,1743606647968,-543.0,0.00052165,120]
[357037169,1743606647978,-1433.0,0.00052165,120]
[357037170,1743606647988,-4083.0,0.00052165,120]
[357037171,1743606647998,-908.0,0.00052165,120]
[357037172,1743606648007,-165.44488601,0.00052279,15]
[357037173,1743606648017,-151.334503,0.000525,2]
[357037174,1743606648027,-151.334503,0.00052564,3]
[357037175,1743606648037,-151.0,0.00052685,120]
[357037176,1743606648047,-900.0,0.00053,2]
[357037177,1743606648057,-324.259,0.00053,98]
[357037178,1743606648067,-139847.1,0.00053,60]
[357037179,1743606648079,-160.85609632,0.0005325,120]
[357037180,1743606648091,-818.0842181,0.0005335,4]
[357037181,1743606648102,-150.02,0.000534,7]
[357037182,1743606648115,-165.44488601,0.00053435,15]
[357037183,1743606648129,-27920.85627565,0.000535,2]
[357037184,1743606648139,-1418.92084551,0.000537,2]
[357037185,1743606648149,-472.7,0.00053913,2]
[357037186,1743606648160,-10003.0,0.00054,120]
[357037187,1743606648170,-2218.0,0.00054,120]
[357037188,1743606648180,-162.09,0.00054368,120]
[357037189,1743606648190,-160.33,0.00054384,120]
[357037190,1743606648200,-3341.14042156,0.0005446,2]
[357037191,1743606648209,-160.8560963,0.00054475,120]
[357037192,1743606648219,-165.44488601,0.0005459,15]
[357037193,1743606648228,-500.0,0.00054794,120]
[357037194,1743606648238,-501.32147867,0.00054794,5]
[357037195,1743606648248,-503.19909455,0.00054794,120]
[357037196,1743606648257,-503.30545059,0.00054794,120]
[357037197,1743606648266,-503.44768184,0.00054794,120]
[357037198,1743606648276,-515.92958915,0.00054794,120]
[357037199,1743606648286,-525.19912646,0.00054794,120]
[357037200,1743606648295,-500.0,0.00054794,2]
[357037201,1743606648304,-500.0,0.00054794,120]
[357037202,1743606648314,-500.0,0.00054794,120]
[357037203,1743606648323,-500.0,0.00054794,120]
[357037204,1743606648333,-500.0,0.00054794,120]
[357037205,1743606648342,-500.0,0.00054794,120]
[357037206,1743606648352,-500.0,0.00054794,2]
[357037207,1743606648362,-500.0,0.00054794,120]
[357037208,1743606648373,-500.0,0.00054794,120]
[357037209,1743606648383,-174.04303184,0.00054794,120]
[357037210,1743606648393,-500.0,0.00054794,120]
[357037211,1743606648403,-285.78367371,0.00054794,120]
[357037212,1743606648412,-500.0,0.00054794,120]
[357037213,1743606648422,-500.0,0.00054794,120]
[357037214,1743606648431,-1023.32,0.00054794,120]
[357037215,1743606648441,-500.0,0.00054794,120]
[357037216,1743606648451,-575.89698039,0.00054794,120]
[357037217,1743606648460,-500.0,0.00054794,120]
[357037218,1743606648470,-500.0,0.00054794,120]
[357037219,1743606648479,-500.0,0.00054794,120]
[357037220,1743606648488,-500.0,0.00054794,120]
[357037221,1743606648498,-513.63376366,0.00054794,120]
[357037222,1743606648507,-500.0,0.00054794,120]
[357037223,1743606648517,-2477.41,0.00054794,7]
[357037224,1743606648526,-500.0,0.00054794,120]
[357037225,1743606648538,-500.0,0.00054794,120]
[357037226,1743606648547,-500.0,0.00054794,120]
[357037227,1743606648556,-500.0,0.00054794,120]
[357037228,1743606648566,-583.35798908,0.00054794,120]